[Event "*** Titled Tuesday Blitz"]
[Site "Chess.com"]
[Date "2020.01.07"]
[Round "6"]
[White "AlexandraBotez"]
[Black "narutosmith"]
[Result "1-0"]
[WhiteElo "2127"]
[BlackElo "2234"]
[TimeControl "180+2"]
[EndTime "14:24:33 PST"]
[Termination "AlexandraBotez won on time"]

1. d4 {[%clk 0:03:01.9]} 1... Nf6 {[%clk 0:03:00.7]} 2. c4 {[%clk 0:02:58.7]}
2... e6 {[%clk 0:03:01.7]} 3. Nf3 {[%clk 0:02:59.5]} 3... Bb4+ {[%clk
0:03:01.7]} 4. Bd2 {[%clk 0:03:00.3]} 4... a5 {[%clk 0:03:02.7]} 5. g3 {[%clk
0:03:00.3]} 5... d6 {[%clk 0:02:59.2]} 6. Bg2 {[%clk 0:03:00.3]} 6... Qe7 {[%clk
0:02:51]} 7. O-O {[%clk 0:03:00.8]} 7... e5 {[%clk 0:02:46.1]} 8. a3 {[%clk
0:02:09.8]} 8... Bxd2 {[%clk 0:02:44]} 9. Nbxd2 {[%clk 0:02:10.5]} 9... O-O
{[%clk 0:02:44.3]} 10. e3 {[%clk 0:02:11.3]} 10... a4 {[%clk 0:02:43.8]} 11. Ne1
{[%clk 0:01:58.9]} 11... Nc6 {[%clk 0:02:38.9]} 12. d5 {[%clk 0:01:58.5]} 12...
Nb8 {[%clk 0:02:39.1]} 13. Nd3 {[%clk 0:01:59.5]} 13... e4 {[%clk 0:02:09.9]}
14. Nf4 {[%clk 0:01:59.7]} 14... Bg4 {[%clk 0:01:58.7]} 15. Qc2 {[%clk
0:01:59.7]} 15... g5 {[%clk 0:01:50.9]} 16. Nh3 {[%clk 0:01:48.2]} 16... h6
{[%clk 0:01:51.5]} 17. Kh1 {[%clk 0:01:27]} 17... Nbd7 {[%clk 0:01:41.3]} 18.
Ng1 {[%clk 0:01:23.3]} 18... Nc5 {[%clk 0:01:39]} 19. h3 {[%clk 0:00:56.3]}
19... Bh5 {[%clk 0:01:36]} 20. g4 {[%clk 0:00:55.2]} 20... Bg6 {[%clk
0:01:35.5]} 21. Ne2 {[%clk 0:00:56.7]} 21... h5 {[%clk 0:01:14.1]} 22. gxh5
{[%clk 0:00:54.1]} 22... Nxh5 {[%clk 0:01:14.4]} 23. Nd4 {[%clk 0:00:45.2]}
23... Nd3 {[%clk 0:01:06.5]} 24. Kg1 {[%clk 0:00:35.1]} 24... f5 {[%clk
0:01:05]} 25. Ne6 {[%clk 0:00:34]} 25... Rf7 {[%clk 0:01:01.5]} 26. Rad1 {[%clk
0:00:17.2]} 26... Qf6 {[%clk 0:00:48.4]} 27. Rb1 {[%clk 0:00:16.1]} 27... Rh7
{[%clk 0:00:25.9]} 28. Qc3 {[%clk 0:00:17.1]} 28... Ne5 {[%clk 0:00:25.1]} 29.
b4 {[%clk 0:00:15]} 29... Nf3+ {[%clk 0:00:25.4]} 30. Nxf3 {[%clk 0:00:13]}
30... Qxc3 {[%clk 0:00:26]} 31. Nfxg5 {[%clk 0:00:14.1]} 31... Rh8 {[%clk
0:00:23]} 32. Nxc7 {[%clk 0:00:14.1]} 32... Qf6 {[%clk 0:00:16.2]} 33. h4 {[%clk
0:00:08.3]} 33... Rf8 {[%clk 0:00:14.7]} 34. Nce6 {[%clk 0:00:09]} 34... Re8
{[%clk 0:00:14.7]} 35. c5 {[%clk 0:00:05.7]} 35... Ng7 {[%clk 0:00:10.5]} 36.
cxd6 {[%clk 0:00:06.1]} 36... Nxe6 {[%clk 0:00:10.1]} 37. dxe6 {[%clk
0:00:06.3]} 37... Rxe6 {[%clk 0:00:10.4]} 38. Nxe6 {[%clk 0:00:03.6]} 38... Qxe6
{[%clk 0:00:11.9]} 39. Rfd1 {[%clk 0:00:04.6]} 39... Qd7 {[%clk 0:00:10.8]} 40.
Rbc1 {[%clk 0:00:05.6]} 40... Be8 {[%clk 0:00:07.6]} 41. Rc7 {[%clk 0:00:06.2]}
41... Qb5 {[%clk 0:00:07.6]} 42. d7 {[%clk 0:00:06.5]} 42... Bxd7 {[%clk
0:00:08.2]} 43. Rdxd7 {[%clk 0:00:07.5]} 43... Qe5 {[%clk 0:00:06]} 44. Rd8+
{[%clk 0:00:08.4]} 1-0

[Event "*** Titled Tuesday Blitz"]
[Site "Chess.com"]
[Date "2020.01.07"]
[Round "6"]
[White "MarcoRiehle"]
[Black "GMBenjaminBok"]
[Result "1-0"]
[WhiteElo "2667"]
[BlackElo "2845"]
[TimeControl "180+2"]
[EndTime "14:24:34 PST"]
[Termination "MarcoRiehle won by resignation"]

1. d4 {[%clk 0:03:01.9]} 1... d5 {[%clk 0:03:00]} 2. Nf3 {[%clk 0:03:00.7]} 2...
Nf6 {[%clk 0:02:59.9]} 3. e3 {[%clk 0:02:59.2]} 3... b6 {[%clk 0:02:45.5]} 4.
Bd3 {[%clk 0:02:57.7]} 4... Bb7 {[%clk 0:02:45.1]} 5. O-O {[%clk 0:02:55.1]}
5... Nbd7 {[%clk 0:02:44.5]} 6. c4 {[%clk 0:02:54.8]} 6... e6 {[%clk 0:02:45.1]}
7. Nc3 {[%clk 0:02:54]} 7... Bd6 {[%clk 0:02:45.7]} 8. Qc2 {[%clk 0:02:49.5]}
8... dxc4 {[%clk 0:02:37]} 9. Bxc4 {[%clk 0:02:48.7]} 9... Bxf3 {[%clk
0:02:24.5]} 10. gxf3 {[%clk 0:02:50.6]} 10... O-O {[%clk 0:02:25.4]} 11. Ne4
{[%clk 0:02:43.7]} 11... Nxe4 {[%clk 0:02:05]} 12. Qxe4 {[%clk 0:02:45.6]} 12...
Qe7 {[%clk 0:01:56.7]} 13. f4 {[%clk 0:02:37.7]} 13... c5 {[%clk 0:01:56.4]} 14.
dxc5 {[%clk 0:02:33.2]} 14... Nxc5 {[%clk 0:01:56.7]} 15. Qg2 {[%clk 0:02:30]}
15... Rac8 {[%clk 0:01:53]} 16. b3 {[%clk 0:02:09.4]} 16... e5 {[%clk
0:00:59.5]} 17. Bb2 {[%clk 0:02:05.6]} 17... g6 {[%clk 0:01:00.6]} 18. f5 {[%clk
0:02:00]} 18... Kg7 {[%clk 0:00:54]} 19. Rad1 {[%clk 0:01:46.7]} 19... Rfd8
{[%clk 0:00:43.4]} 20. f4 {[%clk 0:01:43.1]} 20... f6 {[%clk 0:00:34.1]} 21.
fxg6 {[%clk 0:01:38.7]} 21... hxg6 {[%clk 0:00:34.6]} 22. h4 {[%clk 0:01:17]}
22... exf4 {[%clk 0:00:30.1]} 23. h5 {[%clk 0:01:16.8]} 23... Qxe3+ {[%clk
0:00:30.1]} 24. Kh1 {[%clk 0:01:13.3]} 24... Qe4 {[%clk 0:00:22.7]} 25. Rf3
{[%clk 0:01:06.7]} 25... Be5 {[%clk 0:00:23.1]} 26. Rxd8 {[%clk 0:00:46.2]}
26... Rxd8 {[%clk 0:00:23.4]} 27. Bxe5 {[%clk 0:00:46.3]} 27... fxe5 {[%clk
0:00:21.8]} 28. Kg1 {[%clk 0:00:36.3]} 28... Qf5 {[%clk 0:00:15.6]} 29. Rh3
{[%clk 0:00:27.9]} 29... Rd1+ {[%clk 0:00:10.6]} 30. Bf1 {[%clk 0:00:28.6]}
30... Ne6 {[%clk 0:00:09.5]} 31. Qb7+ {[%clk 0:00:27.4]} 31... Kh6 {[%clk
0:00:06.8]} 32. hxg6+ {[%clk 0:00:28.3]} 32... Qxh3 {[%clk 0:00:07.7]} 33. Qh7+
{[%clk 0:00:28.2]} 33... Kg5 {[%clk 0:00:08.9]} 34. Qxh3 {[%clk 0:00:29]} 34...
Ng7 {[%clk 0:00:08.8]} 35. Qh7 {[%clk 0:00:26.4]} 35... Kf6 {[%clk 0:00:09.4]}
36. Qh4+ {[%clk 0:00:27.3]} 36... Kf5 {[%clk 0:00:09.2]} 37. Qh7 {[%clk
0:00:26.1]} 37... Kf6 {[%clk 0:00:10.1]} 38. Qh4+ {[%clk 0:00:16.8]} 38... Kf5
{[%clk 0:00:10.6]} 39. Kf2 {[%clk 0:00:16.9]} 39... Rd2+ {[%clk 0:00:11]} 40.
Ke1 {[%clk 0:00:16.2]} 40... Rxa2 {[%clk 0:00:05.3]} 41. Qe7 {[%clk 0:00:16]}
41... Kxg6 {[%clk 0:00:05.3]} 42. Bd3+ {[%clk 0:00:16.3]} 42... Kh6 {[%clk
0:00:02.9]} 43. Qf6+ {[%clk 0:00:17.3]} 43... Kh5 {[%clk 0:00:04.1]} 44. Be2+
{[%clk 0:00:16.7]} 44... Rxe2+ {[%clk 0:00:04.4]} 45. Kxe2 {[%clk 0:00:18.6]}
45... Ne8 {[%clk 0:00:04.9]} 46. Qxe5+ {[%clk 0:00:18.5]} 1-0

[Event "*** Titled Tuesday Blitz"]
[Site "Chess.com"]
[Date "2020.01.07"]
[Round "6"]
[White "Hadza_3"]
[Black "DamianoLew95"]
[Result "1-0"]
[WhiteElo "2409"]
[BlackElo "2580"]
[TimeControl "180+2"]
[EndTime "14:24:36 PST"]
[Termination "Hadza_3 won by resignation"]

1. e4 {[%clk 0:03:01.9]} 1... c5 {[%clk 0:02:47.2]} 2. Nc3 {[%clk 0:03:01.5]}
2... Nc6 {[%clk 0:02:47.7]} 3. Bc4 {[%clk 0:02:59.3]} 3... e6 {[%clk 0:02:48.6]}
4. d3 {[%clk 0:03:00.5]} 4... Nf6 {[%clk 0:02:49.5]} 5. a3 {[%clk 0:03:02]} 5...
a6 {[%clk 0:02:48.7]} 6. Ba2 {[%clk 0:03:02.7]} 6... d5 {[%clk 0:02:48.9]} 7.
Nge2 {[%clk 0:02:59.9]} 7... d4 {[%clk 0:02:34]} 8. Nb1 {[%clk 0:02:59]} 8...
Be7 {[%clk 0:02:33.3]} 9. O-O {[%clk 0:02:56.4]} 9... O-O {[%clk 0:02:33.8]} 10.
Nd2 {[%clk 0:02:57.2]} 10... b5 {[%clk 0:02:34.4]} 11. h3 {[%clk 0:02:55.9]}
11... Bb7 {[%clk 0:02:32.6]} 12. f4 {[%clk 0:02:56.6]} 12... c4 {[%clk
0:02:29.1]} 13. Nf3 {[%clk 0:02:56.3]} 13... cxd3 {[%clk 0:02:25.9]} 14. cxd3
{[%clk 0:02:58.2]} 14... b4 {[%clk 0:02:26.4]} 15. Qe1 {[%clk 0:02:50.3]} 15...
bxa3 {[%clk 0:02:24.9]} 16. bxa3 {[%clk 0:02:51.1]} 16... Rb8 {[%clk 0:02:19.4]}
17. Ne5 {[%clk 0:02:30.2]} 17... Nxe5 {[%clk 0:02:19.7]} 18. fxe5 {[%clk
0:02:32.1]} 18... Nd7 {[%clk 0:02:20.2]} 19. Qg3 {[%clk 0:02:27]} 19... Bh4
{[%clk 0:02:11.4]} 20. Qf4 {[%clk 0:02:27.4]} 20... h6 {[%clk 0:02:07.3]} 21.
Kh1 {[%clk 0:01:48.1]} 21... Bg5 {[%clk 0:02:06.3]} 22. Qg3 {[%clk 0:01:49]}
22... Bxc1 {[%clk 0:02:04.6]} 23. Raxc1 {[%clk 0:01:50.9]} 23... Qa5 {[%clk
0:02:02.3]} 24. Nxd4 {[%clk 0:01:24.9]} 24... Qxe5 {[%clk 0:02:01.7]} 25. Qf2
{[%clk 0:01:23.7]} 25... Nf6 {[%clk 0:01:57.4]} 26. Nf3 {[%clk 0:01:18]} 26...
Qa5 {[%clk 0:01:53.7]} 27. Qg3 {[%clk 0:00:37]} 27... Qxa3 {[%clk 0:01:48]} 28.
Bc4 {[%clk 0:00:38]} 28... Rbd8 {[%clk 0:01:41.1]} 29. Ne5 {[%clk 0:00:37.1]}
29... Qd6 {[%clk 0:01:37]} 30. Rxf6 {[%clk 0:00:37.3]} 30... Kh7 {[%clk
0:01:18.2]} 31. Rf3 {[%clk 0:00:37.9]} 31... a5 {[%clk 0:01:07.2]} 32. Rcf1
{[%clk 0:00:37.4]} 32... f6 {[%clk 0:00:29.7]} 33. Ng6 {[%clk 0:00:38.4]} 33...
Rf7 {[%clk 0:00:26.6]} 34. Qxd6 {[%clk 0:00:34.4]} 34... Rxd6 {[%clk 0:00:28.5]}
35. Nf4 {[%clk 0:00:36.2]} 35... Re7 {[%clk 0:00:26.6]} 36. Ra1 {[%clk 0:00:36]}
36... f5 {[%clk 0:00:23.5]} 37. Rxa5 {[%clk 0:00:29.8]} 37... fxe4 {[%clk
0:00:23.5]} 38. dxe4 {[%clk 0:00:31.7]} 38... Bxe4 {[%clk 0:00:24]} 39. Re3
{[%clk 0:00:31.5]} 39... Bb7 {[%clk 0:00:20.7]} 40. Rae5 {[%clk 0:00:16.4]}
40... Rd4 {[%clk 0:00:16.5]} 41. Bd3+ {[%clk 0:00:16.1]} 41... Kg8 {[%clk
0:00:17.2]} 42. Nxe6 {[%clk 0:00:16.7]} 42... Red7 {[%clk 0:00:15.3]} 43. Bg6
{[%clk 0:00:16.3]} 43... Rd2 {[%clk 0:00:11.3]} 44. Nf4 {[%clk 0:00:17.1]} 44...
Rd1+ {[%clk 0:00:07.1]} 45. Kh2 {[%clk 0:00:17.5]} 1-0

[Event "*** Titled Tuesday Blitz"]
[Site "Chess.com"]
[Date "2020.01.07"]
[Round "6"]
[White "KRASAVCHIK2002"]
[Black "IgorBjelobrk"]
[Result "1-0"]
[WhiteElo "2489"]
[BlackElo "2627"]
[TimeControl "180+2"]
[EndTime "14:24:52 PST"]
[Termination "KRASAVCHIK2002 won by resignation"]

1. e4 {[%clk 0:03:01.9]} 1... e5 {[%clk 0:03:00.1]} 2. Nf3 {[%clk 0:03:02.8]}
2... Nc6 {[%clk 0:03:01.2]} 3. Bb5 {[%clk 0:03:03.3]} 3... Nf6 {[%clk
0:03:00.6]} 4. O-O {[%clk 0:03:02.9]} 4... Nxe4 {[%clk 0:03:00.8]} 5. d4 {[%clk
0:03:03.9]} 5... Nd6 {[%clk 0:03:01.6]} 6. Bxc6 {[%clk 0:03:04.9]} 6... dxc6
{[%clk 0:03:02.8]} 7. dxe5 {[%clk 0:03:06.8]} 7... Nf5 {[%clk 0:03:03.5]} 8.
Qxd8+ {[%clk 0:03:08.7]} 8... Kxd8 {[%clk 0:03:05.3]} 9. Nc3 {[%clk 0:03:08.5]}
9... Be7 {[%clk 0:03:05.1]} 10. Rd1+ {[%clk 0:03:07.9]} 10... Ke8 {[%clk
0:03:05.5]} 11. h3 {[%clk 0:03:09.5]} 11... Nh4 {[%clk 0:03:06]} 12. Nd4 {[%clk
0:02:51.3]} 12... Nf5 {[%clk 0:03:04]} 13. Nf3 {[%clk 0:02:51.6]} 13... h5
{[%clk 0:02:59.7]} 14. b3 {[%clk 0:02:41.9]} 14... Be6 {[%clk 0:02:55.5]} 15.
Ne4 {[%clk 0:02:29.1]} 15... Bd5 {[%clk 0:02:52]} 16. Neg5 {[%clk 0:02:09.7]}
16... b5 {[%clk 0:02:41.5]} 17. Bb2 {[%clk 0:01:36.8]} 17... a5 {[%clk
0:02:25.9]} 18. a4 {[%clk 0:01:30.6]} 18... b4 {[%clk 0:02:25]} 19. Re1 {[%clk
0:01:20.4]} 19... h4 {[%clk 0:02:23.7]} 20. e6 {[%clk 0:01:18.7]} 20... f6
{[%clk 0:02:24.3]} 21. Ne4 {[%clk 0:01:06.5]} 21... c5 {[%clk 0:02:19.7]} 22.
Rad1 {[%clk 0:00:50.6]} 22... Rd8 {[%clk 0:02:19.6]} 23. Nfd2 {[%clk 0:00:36.8]}
23... Rh5 {[%clk 0:01:47.6]} 24. Nc4 {[%clk 0:00:27]} 24... Bxc4 {[%clk
0:01:47.6]} 25. bxc4 {[%clk 0:00:28.9]} 25... Nd4 {[%clk 0:01:41.3]} 26. Bxd4
{[%clk 0:00:23.4]} 26... Rxd4 {[%clk 0:01:38.7]} 27. Rxd4 {[%clk 0:00:23.5]}
27... cxd4 {[%clk 0:01:40.6]} 28. Nd2 {[%clk 0:00:23.5]} 28... c5 {[%clk
0:01:04.8]} 29. Nb3 {[%clk 0:00:22.7]} 29... Bd8 {[%clk 0:01:05.9]} 30. e7
{[%clk 0:00:21.2]} 30... Bxe7 {[%clk 0:01:01.7]} 31. Re6 {[%clk 0:00:21.9]}
31... Kd7 {[%clk 0:00:54.9]} 32. Ra6 {[%clk 0:00:21.6]} 32... Re5 {[%clk
0:00:55.8]} 33. Kf1 {[%clk 0:00:16.8]} 33... Bd8 {[%clk 0:00:31.3]} 34. Nxa5
{[%clk 0:00:16.9]} 34... Bxa5 {[%clk 0:00:31.4]} 35. Rxa5 {[%clk 0:00:18.8]}
35... g5 {[%clk 0:00:25.7]} 36. Rb5 {[%clk 0:00:16.7]} 36... Kc6 {[%clk
0:00:25.9]} 37. a5 {[%clk 0:00:17.9]} 37... Kc7 {[%clk 0:00:21.8]} 38. a6 {[%clk
0:00:16.8]} 38... Re6 {[%clk 0:00:14.5]} 39. Rxc5+ {[%clk 0:00:18.1]} 39... Kb6
{[%clk 0:00:15.8]} 40. Rb5+ {[%clk 0:00:17.2]} 40... Kxa6 {[%clk 0:00:17.1]} 41.
Rxb4 {[%clk 0:00:19.1]} 41... Rc6 {[%clk 0:00:18.3]} 42. Ke2 {[%clk 0:00:18.6]}
42... Ka5 {[%clk 0:00:18.8]} 43. Rb5+ {[%clk 0:00:20.1]} 43... Ka4 {[%clk
0:00:18.4]} 44. Kd3 {[%clk 0:00:22]} 44... Rd6 {[%clk 0:00:19.7]} 45. Rf5 {[%clk
0:00:21.3]} 45... Kb4 {[%clk 0:00:20.1]} 46. c5 {[%clk 0:00:19.3]} 46... Re6
{[%clk 0:00:14.5]} 47. Kxd4 {[%clk 0:00:18.8]} 47... Kb5 {[%clk 0:00:15.8]} 48.
Kd5 {[%clk 0:00:17.9]} 48... Rc6 {[%clk 0:00:15.7]} 49. c4+ {[%clk 0:00:17.4]}
1-0

[Event "*** Titled Tuesday Blitz"]
[Site "Chess.com"]
[Date "2020.01.07"]
[Round "6"]
[White "IMUltimateBeast"]
[Black "TigrVShlyape"]
[Result "0-1"]
[WhiteElo "2641"]
[BlackElo "2816"]
[TimeControl "180+2"]
[EndTime "14:24:54 PST"]
[Termination "TigrVShlyape won by resignation"]

1. d4 {[%clk 0:02:57.6]} 1... d5 {[%clk 0:03:01]} 2. Bf4 {[%clk 0:02:59.1]} 2...
c6 {[%clk 0:02:59.2]} 3. e3 {[%clk 0:03:00]} 3... Bf5 {[%clk 0:02:59.3]} 4. Bd3
{[%clk 0:02:48.9]} 4... Bg6 {[%clk 0:02:59.6]} 5. Nf3 {[%clk 0:02:46.4]} 5...
Nd7 {[%clk 0:03:00.7]} 6. O-O {[%clk 0:02:40.3]} 6... e6 {[%clk 0:03:01.8]} 7.
c4 {[%clk 0:02:36.8]} 7... Ngf6 {[%clk 0:03:02.2]} 8. Nc3 {[%clk 0:02:36.3]}
8... Be7 {[%clk 0:03:02.1]} 9. Bxg6 {[%clk 0:02:34.4]} 9... hxg6 {[%clk
0:03:02.6]} 10. h3 {[%clk 0:02:35.7]} 10... dxc4 {[%clk 0:03:00.1]} 11. e4
{[%clk 0:02:32.5]} 11... b5 {[%clk 0:03:00]} 12. Qe2 {[%clk 0:02:14.1]} 12...
O-O {[%clk 0:02:54.3]} 13. Rfd1 {[%clk 0:02:11.3]} 13... Re8 {[%clk 0:02:51.1]}
14. a4 {[%clk 0:02:05]} 14... a6 {[%clk 0:02:49.5]} 15. a5 {[%clk 0:02:02.8]}
15... Qc8 {[%clk 0:02:48.4]} 16. Bg3 {[%clk 0:01:48.4]} 16... c5 {[%clk
0:02:35.4]} 17. e5 {[%clk 0:01:25.9]} 17... Nd5 {[%clk 0:02:26.7]} 18. Nxd5
{[%clk 0:01:26.2]} 18... exd5 {[%clk 0:02:27.3]} 19. e6 {[%clk 0:01:27.8]} 19...
Nf6 {[%clk 0:02:17.4]} 20. exf7+ {[%clk 0:01:28.3]} 20... Kxf7 {[%clk 0:02:18]}
21. Ne5+ {[%clk 0:01:19.9]} 21... Kg8 {[%clk 0:02:18.5]} 22. Nxg6 {[%clk
0:00:49.7]} 22... Bd6 {[%clk 0:02:04]} 23. Qf3 {[%clk 0:00:50.8]} 23... Bxg3
{[%clk 0:02:03.4]} 24. Qxg3 {[%clk 0:00:51.9]} 24... Re4 {[%clk 0:01:38]} 25.
Re1 {[%clk 0:00:46.7]} 25... Qe6 {[%clk 0:01:23.1]} 26. f3 {[%clk 0:00:43.8]}
26... Nh5 {[%clk 0:01:06.2]} 27. Rxe4 {[%clk 0:00:29.3]} 27... dxe4 {[%clk
0:00:58]} 28. Qg4 {[%clk 0:00:15.6]} 28... Qxg4 {[%clk 0:00:52.7]} 29. hxg4
{[%clk 0:00:13.1]} 29... Nf6 {[%clk 0:00:53.2]} 30. dxc5 {[%clk 0:00:13.3]}
30... Kf7 {[%clk 0:00:51.3]} 31. Ne5+ {[%clk 0:00:13.6]} 31... Ke6 {[%clk
0:00:52.1]} 32. Ng6 {[%clk 0:00:12.6]} 32... Kd5 {[%clk 0:00:41]} 33. Rd1+
{[%clk 0:00:10.9]} 33... Kxc5 {[%clk 0:00:41.4]} 34. g5 {[%clk 0:00:10.7]} 34...
Nd5 {[%clk 0:00:40.5]} 35. fxe4 {[%clk 0:00:11.2]} 35... Nb4 {[%clk 0:00:36.8]}
36. Rd7 {[%clk 0:00:10.9]} 36... Rg8 {[%clk 0:00:32.2]} 37. Ne7 {[%clk
0:00:09.7]} 37... Re8 {[%clk 0:00:31.6]} 38. Kf2 {[%clk 0:00:04.4]} 38... Nd3+
{[%clk 0:00:27.9]} 39. Ke3 {[%clk 0:00:05.8]} 39... Nxb2 {[%clk 0:00:27.9]} 40.
Nf5 {[%clk 0:00:05.3]} 40... g6 {[%clk 0:00:24.2]} 41. Ne7 {[%clk 0:00:03.7]}
41... c3 {[%clk 0:00:22.6]} 42. Nxg6 {[%clk 0:00:04.8]} 42... Nc4+ {[%clk
0:00:19.6]} 43. Kd3 {[%clk 0:00:05.2]} 43... Rxe4 {[%clk 0:00:18.8]} 44. Kxe4
{[%clk 0:00:05.7]} 44... c2 {[%clk 0:00:19.5]} 45. Kf5 {[%clk 0:00:05.7]} 45...
c1=Q {[%clk 0:00:19.6]} 46. Nf4 {[%clk 0:00:05.8]} 46... Ne3+ {[%clk 0:00:18.7]}
47. Kg6 {[%clk 0:00:07]} 47... Qb1+ {[%clk 0:00:19.3]} 48. Kh6 {[%clk 0:00:08]}
48... Qf5 {[%clk 0:00:19.9]} 49. Rd5+ {[%clk 0:00:05.6]} 49... Nxd5 {[%clk
0:00:20.1]} 0-1

[Event "*** Titled Tuesday Blitz"]
[Site "Chess.com"]
[Date "2020.01.07"]
[Round "6"]
[White "ShahMatKanal"]
[Black "vugarrasulov"]
[Result "0-1"]
[WhiteElo "2550"]
[BlackElo "2840"]
[TimeControl "180+2"]
[EndTime "14:25:00 PST"]
[Termination "vugarrasulov won on time"]

1. d4 {[%clk 0:03:01.9]} 1... Nf6 {[%clk 0:03:00.3]} 2. c4 {[%clk 0:03:03]} 2...
g6 {[%clk 0:03:01.4]} 3. Nc3 {[%clk 0:03:04.1]} 3... d5 {[%clk 0:03:01.8]} 4.
cxd5 {[%clk 0:03:02]} 4... Nxd5 {[%clk 0:03:03.7]} 5. e4 {[%clk 0:03:02.8]} 5...
Nxc3 {[%clk 0:03:04.5]} 6. bxc3 {[%clk 0:03:04.7]} 6... Bg7 {[%clk 0:03:05.2]}
7. Bb5+ {[%clk 0:03:06.3]} 7... c6 {[%clk 0:03:05.1]} 8. Ba4 {[%clk 0:03:07.5]}
8... O-O {[%clk 0:03:06.1]} 9. Ne2 {[%clk 0:03:08.6]} 9... c5 {[%clk 0:03:06.1]}
10. O-O {[%clk 0:03:09]} 10... Nd7 {[%clk 0:03:04.4]} 11. Be3 {[%clk 0:03:06.3]}
11... Qc7 {[%clk 0:03:05.2]} 12. Rc1 {[%clk 0:03:01.9]} 12... b6 {[%clk
0:03:00.1]} 13. Qd2 {[%clk 0:02:53.7]} 13... Bb7 {[%clk 0:02:59.3]} 14. d5
{[%clk 0:02:43.1]} 14... c4 {[%clk 0:02:50.7]} 15. Bxd7 {[%clk 0:02:33.8]} 15...
Qxd7 {[%clk 0:02:47.4]} 16. Bd4 {[%clk 0:02:32.9]} 16... e5 {[%clk 0:02:30.6]}
17. dxe6 {[%clk 0:02:28.7]} 17... Qxe6 {[%clk 0:02:31.3]} 18. Bxg7 {[%clk
0:02:21.4]} 18... Kxg7 {[%clk 0:02:33.2]} 19. Qd4+ {[%clk 0:02:13.1]} 19... Kg8
{[%clk 0:02:33]} 20. Ng3 {[%clk 0:02:09.4]} 20... Rad8 {[%clk 0:02:33.2]} 21.
Qe3 {[%clk 0:02:07.9]} 21... Rd3 {[%clk 0:02:34.7]} 22. Qe2 {[%clk 0:02:03.9]}
22... Rfd8 {[%clk 0:02:35.1]} 23. Rc2 {[%clk 0:01:52]} 23... h5 {[%clk
0:02:30.9]} 24. f3 {[%clk 0:01:45.7]} 24... Qe5 {[%clk 0:02:26.4]} 25. Rfc1
{[%clk 0:01:41.3]} 25... Bc6 {[%clk 0:02:21.4]} 26. Nf1 {[%clk 0:01:36.7]} 26...
Ba4 {[%clk 0:02:22]} 27. Rd2 {[%clk 0:01:37.9]} 27... Qf4 {[%clk 0:02:10.5]} 28.
Rxd3 {[%clk 0:01:31.1]} 28... cxd3 {[%clk 0:02:10.5]} 29. Qd2 {[%clk 0:01:30.9]}
29... Qc7 {[%clk 0:02:06.9]} 30. Ne3 {[%clk 0:01:27.9]} 30... Qc5 {[%clk
0:02:07.4]} 31. Kf1 {[%clk 0:01:15.6]} 31... Kh7 {[%clk 0:02:00.2]} 32. Nd5
{[%clk 0:01:14.1]} 32... Rxd5 {[%clk 0:01:53.8]} 33. exd5 {[%clk 0:01:12.8]}
33... Qxd5 {[%clk 0:01:55.7]} 34. c4 {[%clk 0:01:07.9]} 34... Qd4 {[%clk
0:01:53.8]} 35. Rc3 {[%clk 0:01:07.6]} 35... Bc2 {[%clk 0:01:47.6]} 36. Rxc2
{[%clk 0:01:08.3]} 36... dxc2 {[%clk 0:01:48.7]} 37. Qxc2 {[%clk 0:00:56]} 37...
Kg7 {[%clk 0:01:49.5]} 38. g3 {[%clk 0:00:43]} 38... Kf6 {[%clk 0:01:47.8]} 39.
h4 {[%clk 0:00:39.3]} 39... Ke6 {[%clk 0:01:43.6]} 40. Ke2 {[%clk 0:00:32.8]}
40... Kd6 {[%clk 0:01:42.9]} 41. Qa4 {[%clk 0:00:26.8]} 41... a5 {[%clk
0:01:23.4]} 42. Qb5 {[%clk 0:00:22.6]} 42... Qc5 {[%clk 0:01:19.7]} 43. Qb3
{[%clk 0:00:09.8]} 43... Kc7 {[%clk 0:01:15.4]} 44. Qd3 {[%clk 0:00:06.6]} 44...
Qe5+ {[%clk 0:01:13.6]} 45. Kf2 {[%clk 0:00:05.6]} 45... Qb2+ {[%clk 0:01:14.9]}
46. Qe2 {[%clk 0:00:06.3]} 46... Qxe2+ {[%clk 0:01:08.1]} 47. Kxe2 {[%clk
0:00:07.6]} 47... Kc6 {[%clk 0:01:09.7]} 48. Kd3 {[%clk 0:00:08.4]} 48... b5
{[%clk 0:01:03.5]} 49. cxb5+ {[%clk 0:00:08.5]} 49... Kxb5 {[%clk 0:01:05.4]}
50. Kc3 {[%clk 0:00:06.5]} 50... Ka4 {[%clk 0:01:05.6]} 51. g4 {[%clk
0:00:04.1]} 51... Ka3 {[%clk 0:01:03.1]} 52. g5 {[%clk 0:00:03.2]} 52... Kxa2
{[%clk 0:01:03.8]} 53. Kc2 {[%clk 0:00:04]} 53... a4 {[%clk 0:00:56.6]} 54. Kc3
{[%clk 0:00:02.9]} 54... Ka3 {[%clk 0:00:54.8]} 55. f4 {[%clk 0:00:02.8]} 55...
Ka2 {[%clk 0:00:54.9]} 56. Kc2 {[%clk 0:00:03.9]} 56... a3 {[%clk 0:00:55.7]}
57. Kc3 {[%clk 0:00:02.7]} 57... Kb1 {[%clk 0:00:56.7]} 58. Kb3 {[%clk 0:00:03]}
58... a2 {[%clk 0:00:58.6]} 0-1